[Event "Polofinale MCR juniorek 2023"]
[Site "Czech Republic"]
[Date "2023.11.16"]
[Round "7.1"]
[White "Buchtova, Viktorie"]
[Black "Markina, Sofiia"]
[Result "1-0"]
[TimeControl "90 min per 40 moves + 15 min + 30 sec / move from move 1"]
[WhiteFideId "23714786"]
[BlackFideId "23744014"]
[WhiteElo "1801"]
[BlackElo "1563"]

1. e4 {[%clk 01:30:58]} {[%emt 00:00:02]} c6 {[%clk 01:30:57]} {[%emt
00:00:04]} 2. d4 {[%clk 01:31:25]} {[%emt 00:00:03]} d5 {[%clk 01:31:22]}
{[%emt 00:00:06]} 3. Nc3 {[%clk 01:31:46]} {[%emt 00:00:08]} dxe4 {[%clk
01:31:22]} {[%emt 00:00:29]} 4. Nxe4 {[%clk 01:32:11]} {[%emt 00:00:06]} Nf6
{[%clk 01:31:42]} {[%emt 00:00:10]} 5. Nxf6+ {[%clk 01:32:34]} {[%emt
00:00:05]} exf6 {[%clk 01:32:02]} {[%emt 00:00:10]} 6. c3 {[%clk 01:33:03]} Bd6
{[%clk 01:32:18]} {[%emt 00:00:15]} 7. Bd3 {[%clk 01:33:28]} {[%emt 00:00:05]}
O-O {[%clk 01:32:19]} {[%emt 00:00:29]} 8. Qc2 {[%clk 01:33:54]} {[%emt
00:00:04]} Re8+ {[%clk 01:32:29]} {[%emt 00:00:20]} 9. Ne2 {[%clk 01:34:20]}
{[%emt 00:00:04]} h5 {[%clk 01:32:28]} {[%emt 00:00:31]} 10. Be3 {[%clk
01:34:23]} {[%emt 00:00:27]} Nd7 {[%clk 01:30:26]} {[%emt 00:02:32]} 11. Ng3
{[%clk 01:24:12]} {[%emt 00:10:40]} Nb6 {[%clk 01:28:23]} {[%emt 00:02:34]} 12.
c4 {[%clk 01:19:08]} {[%emt 00:05:34]} Bb4+ {[%clk 01:19:15]} {[%emt 00:09:37]}
13. Kf1 {[%clk 01:19:14]} {[%emt 00:00:23]} h4 {[%clk 01:17:05]} {[%emt
00:02:42]} 14. Nf5 {[%clk 01:18:04]} {[%emt 00:01:39]} h3 {[%clk 01:14:22]}
{[%emt 00:03:13]} 15. gxh3 {[%clk 01:12:57]} {[%emt 00:05:37]} g6 {[%clk
01:12:17]} {[%emt 00:02:35]} 16. Rg1 {[%clk 01:10:24]} {[%emt 00:03:03]} Kh7
{[%clk 01:06:00]} {[%emt 00:06:48]} 17. Rg4 {[%clk 00:48:09]} {[%emt 00:22:45]}
gxf5 {[%clk 01:00:14]} {[%emt 00:06:16]} 18. Bxf5+ {[%clk 00:48:25]} {[%emt
00:00:13]} Kh8 {[%clk 01:00:40]} {[%emt 00:00:04]} 19. Bh6 {[%clk 00:46:13]}
{[%emt 00:02:42]} Bf8 {[%clk 00:59:59]} {[%emt 00:01:11]} 20. Bxf8 {[%clk
00:45:56]} {[%emt 00:00:47]} Rxf8 {[%clk 01:00:15]} {[%emt 00:00:14]} 21. Bxc8
{[%clk 00:46:04]} {[%emt 00:00:22]} Qxc8 {[%clk 01:00:19]} {[%emt 00:00:26]} 22.
Rh4+ {[%clk 00:45:58]} {[%emt 00:00:36]} 1-0

[Event "Polofinale MCR juniorek 2023"]
[Site "Czech Republic"]
[Date "2023.11.16"]
[Round "7.2"]
[White "Sulcova, Tereza Radmila"]
[Black "Brezikova, Beata"]
[Result "1/2-1/2"]
[TimeControl "90 min per 40 moves + 15 min + 30 sec / move from move 1"]
[WhiteFideId "395196"]
[BlackFideId "23727250"]
[WhiteElo "1671"]
[BlackElo "1622"]

1. e4 {[%clk 01:30:54]} {[%emt 00:00:06]} c5 {[%clk 01:30:51]} {[%emt
00:00:10]} 2. c4 {[%clk 01:29:46]} {[%emt 00:01:37]} g6 {[%clk 01:30:53]}
{[%emt 00:00:29]} 3. g3 {[%clk 01:30:01]} {[%emt 00:00:15]} Bg7 {[%clk
01:30:50]} {[%emt 00:00:33]} 4. Bg2 {[%clk 01:30:13]} {[%emt 00:00:18]} Nc6
{[%clk 01:30:43]} {[%emt 00:00:37]} 5. Ne2 {[%clk 01:29:45]} {[%emt 00:00:58]}
e6 {[%clk 01:30:33]} {[%emt 00:00:41]} 6. Nbc3 {[%clk 01:30:00]} {[%emt
00:00:15]} Nge7 {[%clk 01:30:15]} {[%emt 00:00:48]} 7. O-O {[%clk 01:30:13]}
{[%emt 00:00:17]} O-O {[%clk 01:30:25]} {[%emt 00:00:21]} 8. d3 {[%clk
01:30:35]} {[%emt 00:00:08]} b6 {[%clk 01:29:47]} {[%emt 00:01:08]} 9. Be3
{[%clk 01:30:32]} {[%emt 00:00:32]} Bb7 {[%clk 01:29:35]} {[%emt 00:00:42]} 10.
d4 {[%clk 01:28:47]} {[%emt 00:02:15]} cxd4 {[%clk 01:18:05]} {[%emt 00:12:01]}
11. Nxd4 {[%clk 01:27:45]} {[%emt 00:01:32]} Na5 {[%clk 01:13:47]} {[%emt
00:04:47]} 12. Qe2 {[%clk 01:19:12]} {[%emt 00:09:03]} d5 {[%clk 01:05:48]}
{[%emt 00:08:30]} 13. cxd5 {[%clk 01:15:18]} {[%emt 00:04:24]} exd5 {[%clk
01:05:52]} {[%emt 00:00:25]} 14. Rfd1 {[%clk 01:14:05]} {[%emt 00:01:42]} Qd7
{[%clk 00:58:07]} {[%emt 00:08:16]} 15. exd5 {[%clk 01:10:56]} {[%emt
00:03:39]} Rac8 {[%clk 00:47:56]} {[%emt 00:10:40]} 16. Nc6 {[%clk 01:03:39]}
{[%emt 00:07:47]} Bxc6 {[%clk 00:42:37]} {[%emt 00:05:49]} 17. dxc6 {[%clk
01:02:59]} {[%emt 00:01:10]} Qe6 {[%clk 00:42:10]} {[%emt 00:00:57]} 18. Bd4
{[%clk 00:53:04]} {[%emt 00:10:25]} Qxe2 {[%clk 00:38:42]} {[%emt 00:03:58]}
1/2-1/2

[Event "Polofinale MCR juniorek 2023"]
[Site "Czech Republic"]
[Date "2023.11.16"]
[Round "7.3"]
[White "Hosova, Sandra"]
[Black "Jakubse, Tamae Severina"]
[Result "0-1"]
[TimeControl "90 min per 40 moves + 15 min + 30 sec / move from move 1"]
[WhiteFideId "397717"]
[BlackFideId "23745975"]
[WhiteElo "1730"]
[BlackElo "1679"]

1. d4 {[%clk 01:27:20]} {[%emt 00:03:40]} Nf6 {[%clk 01:30:54]} {[%emt
00:00:07]} 2. c4 {[%clk 01:27:31]} {[%emt 00:00:18]} g6 {[%clk 01:31:15]}
{[%emt 00:00:09]} 3. Nc3 {[%clk 01:27:28]} {[%emt 00:00:32]} d5 {[%clk
01:31:41]} {[%emt 00:00:05]} 4. cxd5 {[%clk 01:27:43]} {[%emt 00:00:15]} Nxd5
{[%clk 01:32:05]} {[%emt 00:00:07]} 5. e4 {[%clk 01:27:53]} {[%emt 00:00:19]}
Nxc3 {[%clk 01:32:30]} {[%emt 00:00:06]} 6. bxc3 {[%clk 01:28:16]} {[%emt
00:00:07]} Bg7 {[%clk 01:32:57]} {[%emt 00:00:03]} 7. Rb1 {[%clk 01:27:42]}
{[%emt 00:01:03]} O-O {[%clk 01:31:22]} {[%emt 00:02:05]} 8. Nf3 {[%clk
01:27:39]} {[%emt 00:00:33]} c5 {[%clk 01:31:36]} {[%emt 00:00:17]} 9. Be2
{[%clk 01:27:16]} {[%emt 00:00:53]} Nc6 {[%clk 01:28:30]} {[%emt 00:03:36]} 10.
d5 {[%clk 01:26:12]} {[%emt 00:01:33]} Ne5 {[%clk 01:24:42]} {[%emt 00:04:19]}
11. Bd2 {[%clk 01:17:50]} {[%emt 00:08:52]} f5 {[%clk 01:17:27]} {[%emt
00:07:45]} 12. c4 {[%clk 01:06:52]} {[%emt 00:11:28]} fxe4 {[%clk 01:08:18]}
{[%emt 00:09:39]} 13. Nxe5 {[%clk 01:06:12]} {[%emt 00:01:09]} Bxe5 {[%clk
01:08:36]} {[%emt 00:00:12]} 14. Bg4 {[%clk 01:01:52]} {[%emt 00:04:50]} Bd4
{[%clk 01:04:54]} {[%emt 00:04:12]} 15. O-O {[%clk 01:00:16]} {[%emt 00:02:06]}
Qc7 {[%clk 00:55:08]} {[%emt 00:10:16]} 16. Bxc8 {[%clk 00:55:30]} {[%emt
00:05:16]} Qxc8 {[%clk 00:55:09]} {[%emt 00:00:30]} 17. Qe2 {[%clk 00:53:25]}
{[%emt 00:02:35]} Qf5 {[%clk 00:44:03]} {[%emt 00:11:36]} 18. Rxb7 {[%clk
00:46:07]} {[%emt 00:07:48]} Rab8 {[%clk 00:40:06]} {[%emt 00:04:26]} 19. Rb3
{[%clk 00:23:38]} {[%emt 00:22:59]} Rxb3 {[%clk 00:34:05]} {[%emt 00:06:31]} 20.
axb3 {[%clk 00:24:05]} {[%emt 00:00:02]} Rb8 {[%clk 00:34:11]} {[%emt
00:00:25]} 21. Qd1 {[%clk 00:23:42]} {[%emt 00:00:52]} Qe5 {[%clk 00:33:04]}
{[%emt 00:01:37]} 22. Re1 {[%clk 00:21:48]} {[%emt 00:02:25]} e6 {[%clk
00:28:41]} {[%emt 00:04:53]} 23. Qg4 {[%clk 00:12:30]} {[%emt 00:09:48]} Rf8
{[%clk 00:18:05]} {[%emt 00:11:06]} 24. Be3 {[%clk 00:05:35]} {[%emt 00:07:26]}
exd5 {[%clk 00:15:23]} {[%emt 00:03:12]} 25. cxd5 {[%clk 00:02:49]} {[%emt
00:03:16]} Qxd5 {[%clk 00:14:35]} {[%emt 00:01:18]} 26. Bxd4 {[%clk 00:02:42]}
{[%emt 00:00:36]} Qxd4 {[%clk 00:12:48]} {[%emt 00:02:17]} 27. Qe2 {[%clk
00:01:04]} {[%emt 00:02:09]} Rb8 {[%clk 00:06:15]} {[%emt 00:07:03]} 28. Qa2
{[%clk 00:00:45]} {[%emt 00:00:49]} c4 {[%clk 00:05:28]} {[%emt 00:01:16]} 29.
Qa6 {[%clk 00:00:33]} {[%emt 00:00:43]} cxb3 {[%clk 00:03:37]} {[%emt
00:02:22]} 30. Qe6+ {[%clk 00:00:39]} {[%emt 00:00:23]} Kh8 {[%clk 00:03:56]}
{[%emt 00:00:11]} 31. h3 {[%clk 00:00:33]} {[%emt 00:00:36]} b2 {[%clk
00:03:33]} {[%emt 00:00:53]} 32. Kh2 {[%clk 00:00:35]} {[%emt 00:00:27]} Rd8
{[%clk 00:02:38]} {[%emt 00:01:25]} 33. Rxe4 {[%clk 00:00:36]} {[%emt
00:00:29]} Qd6+ {[%clk 00:02:53]} {[%emt 00:00:15]} 34. Qxd6 {[%clk 00:00:54]}
{[%emt 00:00:13]} Rxd6 {[%clk 00:03:17]} {[%emt 00:00:05]} 35. Rb4 {[%clk
00:01:04]} {[%emt 00:00:19]} Rb6 {[%clk 00:03:37]} {[%emt 00:00:10]} 0-1

[Event "Polofinale MCR juniorek 2023"]
[Site "Czech Republic"]
[Date "2023.11.16"]
[Round "7.5"]
[White "Stavova, Helena"]
[Black "Nagyova, Daniela"]
[Result "0-1"]
[TimeControl "90 min per 40 moves + 15 min + 30 sec / move from move 1"]
[WhiteFideId "23714751"]
[BlackFideId "390070"]
[WhiteElo "1425"]
[BlackElo "1872"]

1. e4 {[%clk 01:30:55]} {[%emt 00:00:04]} e5 {[%clk 01:30:48]} {[%emt
00:00:12]} 2. Nf3 {[%clk 01:30:58]} {[%emt 00:00:27]} Nc6 {[%clk 01:30:59]}
{[%emt 00:00:20]} 3. d4 {[%clk 01:30:58]} {[%emt 00:00:29]} exd4 {[%clk
01:31:13]} {[%emt 00:00:17]} 4. Nxd4 {[%clk 01:31:11]} {[%emt 00:00:17]} Nf6
{[%clk 01:31:00]} {[%emt 00:00:43]} 5. Nc3 {[%clk 01:31:14]} {[%emt 00:00:27]}
Bb4 {[%clk 01:31:08]} {[%emt 00:00:22]} 6. Nxc6 {[%clk 01:31:26]} {[%emt
00:00:19]} bxc6 {[%clk 01:31:25]} {[%emt 00:00:13]} 7. Bd3 {[%clk 01:31:45]}
{[%emt 00:00:10]} O-O {[%clk 01:30:40]} {[%emt 00:01:15]} 8. O-O {[%clk
01:31:56]} {[%emt 00:00:19]} d5 {[%clk 01:30:22]} {[%emt 00:00:48]} 9. exd5
{[%clk 01:31:42]} {[%emt 00:00:44]} cxd5 {[%clk 01:30:35]} {[%emt 00:00:17]} 10.
Bg5 {[%clk 01:31:17]} {[%emt 00:00:54]} c6 {[%clk 01:30:03]} {[%emt 00:01:03]}
11. Qf3 {[%clk 01:30:22]} {[%emt 00:01:25]} Bd6 {[%clk 01:29:49]} {[%emt
00:00:44]} 12. h3 {[%clk 01:29:25]} {[%emt 00:01:26]} Rb8 {[%clk 01:28:43]}
{[%emt 00:01:36]} 13. Rab1 {[%clk 01:28:25]} {[%emt 00:01:30]} Re8 {[%clk
01:26:37]} {[%emt 00:02:37]} 14. Ne2 {[%clk 01:26:33]} {[%emt 00:02:22]} Be5
{[%clk 01:24:31]} {[%emt 00:02:35]} 15. c3 {[%clk 01:25:36]} {[%emt 00:01:27]}
Qd6 {[%clk 01:20:29]} {[%emt 00:04:32]} 16. Rfe1 {[%clk 01:15:54]} {[%emt
00:10:12]} c5 {[%clk 01:16:29]} {[%emt 00:04:30]} 17. Bc2 {[%clk 01:10:39]}
{[%emt 00:05:45]} Bb7 {[%clk 01:08:37]} {[%emt 00:08:23]} 18. Qd3 {[%clk
01:03:06]} {[%emt 00:08:02]} Ne4 {[%clk 01:01:40]} {[%emt 00:07:27]} 19. Be3
{[%clk 00:59:32]} {[%emt 00:04:04]} f5 {[%clk 00:48:50]} {[%emt 00:13:21]} 20.
f3 {[%clk 00:51:22]} {[%emt 00:08:40]} Ba6 {[%clk 00:42:57]} {[%emt 00:06:23]}
21. Qd1 {[%clk 00:50:43]} {[%emt 00:01:08]} Bxe2 {[%clk 00:39:57]} {[%emt
00:03:31]} 22. Rxe2 {[%clk 00:48:17]} {[%emt 00:02:55]} Bh2+ {[%clk 00:39:56]}
{[%emt 00:00:31]} 23. Kh1 {[%clk 00:46:22]} {[%emt 00:02:25]} Ng3+ {[%clk
00:39:53]} {[%emt 00:00:34]} 24. Kxh2 {[%clk 00:46:40]} {[%emt 00:00:12]} Nxe2+
{[%clk 00:39:51]} {[%emt 00:00:32]} 25. Kh1 {[%clk 00:45:14]} {[%emt 00:01:56]}
Rxe3 {[%clk 00:38:56]} {[%emt 00:01:25]} 0-1

[Event "Polofinale MCR juniorek 2023"]
[Site "Czech Republic"]
[Date "2023.11.16"]
[Round "7.6"]
[White "Petirova, Iva"]
[Black "Dudova, Pavlina"]
[Result "1-0"]
[TimeControl "90 min per 40 moves + 15 min + 30 sec / move from move 1"]
[WhiteFideId "23741961"]
[BlackFideId "394629"]
[WhiteElo "1636"]
[BlackElo "1763"]

1. e4 {[%clk 01:30:56]} {[%emt 00:00:03]} e6 {[%clk 01:30:50]} {[%emt
00:00:10]} 2. d4 {[%clk 01:31:20]} {[%emt 00:00:06]} d5 {[%clk 01:31:14]}
{[%emt 00:00:06]} 3. Nc3 {[%clk 01:31:43]} {[%emt 00:00:07]} Bb4 {[%clk
01:31:37]} {[%emt 00:00:08]} 4. e5 {[%clk 01:32:02]} {[%emt 00:00:11]} c5
{[%clk 01:31:57]} {[%emt 00:00:09]} 5. a3 {[%clk 01:32:19]} {[%emt 00:00:13]}
Bxc3+ {[%clk 01:32:21]} {[%emt 00:00:07]} 6. bxc3 {[%clk 01:32:40]} {[%emt
00:00:10]} Qa5 {[%clk 01:32:38]} {[%emt 00:00:13]} 7. Bd2 {[%clk 01:32:53]}
{[%emt 00:00:17]} Qa4 {[%clk 01:32:57]} {[%emt 00:00:10]} 8. Qg4 {[%clk
01:33:07]} {[%emt 00:00:16]} g6 {[%clk 01:32:27]} {[%emt 00:01:01]} 9. h4
{[%clk 01:30:47]} {[%emt 00:02:49]} Nc6 {[%clk 01:31:07]} {[%emt 00:01:50]} 10.
Nf3 {[%clk 01:29:32]} {[%emt 00:01:44]} Nge7 {[%clk 01:27:24]} {[%emt
00:04:13]} 11. h5 {[%clk 01:27:00]} {[%emt 00:03:02]} Bd7 {[%clk 01:19:24]}
{[%emt 00:08:30]} 12. hxg6 {[%clk 01:21:36]} {[%emt 00:05:54]} fxg6 {[%clk
01:19:39]} {[%emt 00:00:15]} 13. Ng5 {[%clk 01:14:10]} {[%emt 00:07:56]} cxd4
{[%clk 01:07:11]} {[%emt 00:12:59]} 14. Nxe6 {[%clk 01:01:54]} {[%emt
00:12:46]} h5 {[%clk 01:01:34]} {[%emt 00:06:07]} 15. Ng7+ {[%clk 00:56:35]}
{[%emt 00:05:49]} Kd8 {[%clk 01:01:22]} {[%emt 00:00:41]} 16. Qf4 {[%clk
00:49:25]} {[%emt 00:07:40]} Qxc2 {[%clk 00:58:37]} {[%emt 00:03:16]} 17. Rc1
{[%clk 00:45:04]} {[%emt 00:04:51]} Qe4+ {[%clk 00:57:24]} {[%emt 00:01:42]} 18.
Qxe4 {[%clk 00:45:28]} {[%emt 00:00:07]} dxe4 {[%clk 00:57:48]} {[%emt
00:00:06]} 19. e6 {[%clk 00:44:11]} {[%emt 00:01:47]} Bc8 {[%clk 00:53:31]}
{[%emt 00:04:48]} 20. cxd4 {[%clk 00:41:01]} {[%emt 00:03:40]} Rh7 {[%clk
00:53:28]} {[%emt 00:00:32]} 21. Bg5 {[%clk 00:40:45]} {[%emt 00:00:45]} Rxg7
{[%clk 00:43:56]} {[%emt 00:10:03]} 22. d5 {[%clk 00:40:51]} {[%emt 00:00:24]}
Ke8 {[%clk 00:43:28]} {[%emt 00:00:58]} 23. dxc6 {[%clk 00:39:26]} {[%emt
00:01:55]} Nxc6 {[%clk 00:43:49]} {[%emt 00:00:09]} 24. Bc4 {[%clk 00:38:10]}
{[%emt 00:01:46]} a6 {[%clk 00:36:59]} {[%emt 00:07:20]} 25. Rh4 {[%clk
00:37:56]} {[%emt 00:00:44]} Ne7 {[%clk 00:32:29]} {[%emt 00:05:00]} 26. Rf4
{[%clk 00:35:34]} {[%emt 00:02:52]} 1-0

[Event "Polofinale MCR juniorek 2023"]
[Site "Czech Republic"]
[Date "2023.11.16"]
[Round "7.7"]
[White "Bartova, Hana"]
[Black "Vavrinkova, Marie"]
[Result "1-0"]
[TimeControl "90 min per 40 moves + 15 min + 30 sec / move from move 1"]
[WhiteFideId "23732695"]
[BlackFideId "392154"]
[WhiteElo "1270"]
[BlackElo "1492"]

1. e4 {[%clk 01:30:57]} {[%emt 00:00:01]} d6 {[%clk 01:30:45]} {[%emt
00:00:15]} 2. d4 {[%clk 01:31:01]} {[%emt 00:00:26]} Nf6 {[%clk 01:30:51]}
{[%emt 00:00:24]} 3. Nc3 {[%clk 01:30:32]} {[%emt 00:00:58]} g6 {[%clk
01:30:53]} {[%emt 00:00:29]} 4. g3 {[%clk 01:30:09]} {[%emt 00:00:53]} Bg7
{[%clk 01:30:30]} {[%emt 00:00:53]} 5. Bg2 {[%clk 01:30:09]} {[%emt 00:00:29]}
O-O {[%clk 01:30:04]} {[%emt 00:00:57]} 6. Nge2 {[%clk 01:29:32]} {[%emt
00:01:06]} Nbd7 {[%clk 01:29:14]} {[%emt 00:01:21]} 7. O-O {[%clk 01:28:23]}
{[%emt 00:01:39]} e5 {[%clk 01:26:54]} {[%emt 00:02:50]} 8. h3 {[%clk
01:26:53]} {[%emt 00:01:58]} c6 {[%clk 01:24:41]} {[%emt 00:02:45]} 9. a4
{[%clk 01:26:26]} {[%emt 00:00:57]} a5 {[%clk 01:23:42]} {[%emt 00:01:30]} 10.
Be3 {[%clk 01:24:35]} {[%emt 00:02:19]} Re8 {[%clk 01:22:03]} {[%emt 00:02:10]}
11. g4 {[%clk 01:22:03]} {[%emt 00:03:01]} Qc7 {[%clk 01:13:58]} {[%emt
00:08:36]} 12. Ng3 {[%clk 01:18:53]} {[%emt 00:03:39]} Nb6 {[%clk 01:09:26]}
{[%emt 00:05:03]} 13. b3 {[%clk 01:16:00]} {[%emt 00:03:23]} Nfd7 {[%clk
01:00:09]} {[%emt 00:09:47]} 14. Qd2 {[%clk 01:06:51]} {[%emt 00:09:39]} Rd8
{[%clk 00:53:27]} {[%emt 00:07:12]} 15. Rad1 {[%clk 01:04:40]} {[%emt
00:02:41]} Bf8 {[%clk 00:45:48]} {[%emt 00:08:11]} 16. f4 {[%clk 00:59:49]}
{[%emt 00:05:20]} Be7 {[%clk 00:35:00]} {[%emt 00:11:18]} 17. f5 {[%clk
00:49:40]} {[%emt 00:10:40]} exd4 {[%clk 00:19:13]} {[%emt 00:16:17]} 18. Bxd4
{[%clk 00:49:00]} {[%emt 00:01:09]} c5 {[%clk 00:19:27]} {[%emt 00:00:16]} 19.
Nb5 {[%clk 00:48:54]} {[%emt 00:00:36]} Qb8 {[%clk 00:19:04]} {[%emt 00:00:53]}
20. Ba1 {[%clk 00:33:43]} {[%emt 00:15:40]} d5 {[%clk 00:17:26]} {[%emt
00:02:09]} 21. fxg6 {[%clk 00:26:25]} {[%emt 00:07:48]} fxg6 {[%clk 00:16:12]}
{[%emt 00:01:44]} 22. Qh6 {[%clk 00:25:01]} {[%emt 00:01:48]} Bf8 {[%clk
00:14:51]} {[%emt 00:01:55]} 23. Rxf8+ {[%clk 00:25:18]} {[%emt 00:00:13]} 1-0

[Event "Polofinale MCR juniorek 2023"]
[Site "Czech Republic"]
[Date "2023.11.16"]
[Round "7.8"]
[White "Nova, Anezka"]
[Black "Sikorova, Jana"]
[Result "0-1"]
[TimeControl "90 min per 40 moves + 15 min + 30 sec / move from move 1"]
[WhiteFideId "23727144"]
[BlackFideId "392472"]
[WhiteElo "1578"]
[BlackElo "1662"]

1. e4 {[%clk 01:30:30]} {[%emt 19:25:52]} c5 {[%clk 01:30:45]} {[%emt
00:00:23]} 2. Nf3 {[%clk 01:31:23]} {[%emt 00:00:06]} e6 {[%clk 01:31:08]}
{[%emt 00:00:07]} 3. c3 {[%clk 01:31:49]} {[%emt 00:00:04]} d5 {[%clk
01:31:32]} {[%emt 00:00:06]} 4. exd5 {[%clk 01:32:16]} {[%emt 00:00:04]} Qxd5
{[%clk 01:31:53]} {[%emt 00:00:08]} 5. d4 {[%clk 01:32:39]} {[%emt 00:00:06]}
Nf6 {[%clk 01:32:09]} {[%emt 00:00:14]} 6. Bd3 {[%clk 01:32:57]} {[%emt
00:00:13]} Nc6 {[%clk 01:31:48]} {[%emt 00:00:51]} 7. O-O {[%clk 01:33:15]}
{[%emt 00:00:12]} cxd4 {[%clk 01:31:33]} {[%emt 00:00:45]} 8. cxd4 {[%clk
01:33:35]} {[%emt 00:00:11]} Nb4 {[%clk 01:29:58]} {[%emt 00:02:04]} 9. Nc3
{[%clk 01:29:23]} {[%emt 00:04:41]} Qd8 {[%clk 01:27:45]} {[%emt 00:02:42]} 10.
Bb5+ {[%clk 01:26:05]} {[%emt 00:03:50]} Bd7 {[%clk 01:23:59]} {[%emt
00:04:15]} 11. Be2 {[%clk 01:19:13]} {[%emt 00:07:23]} Be7 {[%clk 01:22:32]}
{[%emt 00:01:57]} 12. Bg5 {[%clk 01:14:13]} {[%emt 00:05:31]} O-O {[%clk
01:20:24]} {[%emt 00:02:37]} 13. Ne5 {[%clk 01:10:32]} {[%emt 00:04:10]} Rc8
{[%clk 01:18:23]} {[%emt 00:02:31]} 14. a3 {[%clk 01:08:18]} {[%emt 00:02:45]}
Nbd5 {[%clk 01:17:27]} {[%emt 00:01:25]} 15. Qb3 {[%clk 01:04:35]} {[%emt
00:04:14]} Bc6 {[%clk 01:04:22]} {[%emt 00:13:35]} 16. Rfd1 {[%clk 01:00:14]}
{[%emt 00:04:51]} b6 {[%clk 00:54:51]} {[%emt 00:10:02]} 17. Ba6 {[%clk
00:50:01]} {[%emt 00:10:43]} Rc7 {[%clk 00:53:23]} {[%emt 00:01:56]} 18. Nb5
{[%clk 00:48:18]} {[%emt 00:02:13]} Bxb5 {[%clk 00:52:35]} {[%emt 00:01:17]} 19.
Bxb5 {[%clk 00:48:37]} {[%emt 00:00:12]} h6 {[%clk 00:50:49]} {[%emt 00:02:15]}
20. Bh4 {[%clk 00:45:54]} {[%emt 00:03:13]} Qc8 {[%clk 00:48:35]} {[%emt
00:02:44]} 21. Bg3 {[%clk 00:37:57]} {[%emt 00:08:28]} Ne4 {[%clk 00:41:51]}
{[%emt 00:07:14]} 22. Bc4 {[%clk 00:29:29]} {[%emt 00:08:58]} Nxg3 {[%clk
00:40:20]} {[%emt 00:02:00]} 23. hxg3 {[%clk 00:29:43]} {[%emt 00:00:16]} Rd8
{[%clk 00:40:06]} {[%emt 00:00:44]} 24. Rac1 {[%clk 00:22:02]} {[%emt
00:08:11]} Bf6 {[%clk 00:37:51]} {[%emt 00:02:45]} 25. Ng4 {[%clk 00:16:22]}
{[%emt 00:06:10]} Bg5 {[%clk 00:36:53]} {[%emt 00:01:27]} 26. f4 {[%clk
00:15:47]} {[%emt 00:01:06]} Be7 {[%clk 00:34:45]} {[%emt 00:02:38]} 27. Rc2
{[%clk 00:11:38]} {[%emt 00:04:39]} Qd7 {[%clk 00:28:30]} {[%emt 00:06:45]} 28.
Ne5 {[%clk 00:08:56]} {[%emt 00:03:12]} Qd6 {[%clk 00:28:04]} {[%emt 00:00:55]}
29. Bxd5 {[%clk 00:06:05]} {[%emt 00:03:21]} exd5 {[%clk 00:25:50]} {[%emt
00:02:44]} 30. Rdc1 {[%clk 00:04:16]} {[%emt 00:02:20]} Rxc2 {[%clk 00:24:26]}
{[%emt 00:01:53]} 31. Rxc2 {[%clk 00:03:55]} {[%emt 00:00:51]} Bf6 {[%clk
00:22:38]} {[%emt 00:02:19]} 32. Rc6 {[%clk 00:03:11]} {[%emt 00:01:15]} Qe7
{[%clk 00:22:05]} {[%emt 00:01:01]} 33. Qc3 {[%clk 00:03:03]} {[%emt 00:00:39]}
Bxe5 {[%clk 00:20:57]} {[%emt 00:01:38]} 34. fxe5 {[%clk 00:02:44]} {[%emt
00:00:50]} Rd7 {[%clk 00:20:02]} {[%emt 00:01:25]} 35. Rc8+ {[%clk 00:02:07]}
{[%emt 00:01:07]} Kh7 {[%clk 00:19:59]} {[%emt 00:00:31]} 36. Qd3+ {[%clk
00:02:23]} {[%emt 00:00:15]} g6 {[%clk 00:20:17]} {[%emt 00:00:12]} 37. Qf3
{[%clk 00:02:27]} {[%emt 00:00:26]} Kg7 {[%clk 00:18:43]} {[%emt 00:02:03]} 38.
Rc6 {[%clk 00:02:02]} {[%emt 00:00:55]} Kf8 {[%clk 00:13:04]} {[%emt 00:06:08]}
39. Qf4 {[%clk 00:01:24]} {[%emt 00:01:09]} Kg7 {[%clk 00:12:56]} {[%emt
00:00:37]} 40. Qf6+ {[%clk 00:01:25]} {[%emt 00:00:30]} Qxf6 {[%clk 00:11:16]}
{[%emt 00:02:10]} 41. Rxf6 {[%clk 00:01:43]} {[%emt 00:00:12]} Rc7 {[%clk
00:09:45]} {[%emt 00:02:01]} 42. Rf2 {[%clk 00:00:36]} {[%emt 00:01:37]} Rc1+
{[%clk 00:09:24]} {[%emt 00:00:50]} 43. Kh2 {[%clk 00:00:59]} {[%emt 00:00:07]}
Rd1 {[%clk 00:09:30]} {[%emt 00:00:24]} 44. Rf4 {[%clk 00:01:05]} {[%emt
00:00:24]} g5 {[%clk 00:09:29]} {[%emt 00:00:31]} 45. Rf6 {[%clk 00:00:49]}
{[%emt 00:00:47]} Rxd4 {[%clk 00:09:45]} {[%emt 00:00:13]} 46. Rd6 {[%clk
00:01:03]} {[%emt 00:00:16]} Rd2 {[%clk 00:09:18]} {[%emt 00:00:57]} 47. b4
{[%clk 00:00:33]} {[%emt 00:01:01]} Rd3 {[%clk 00:08:46]} {[%emt 00:01:02]} 48.
a4 {[%clk 00:00:39]} {[%emt 00:00:25]} Rd4 {[%clk 00:08:18]} {[%emt 00:00:58]}
49. b5 {[%clk 00:14:28]} {[%emt 00:02:11]} Rxa4 {[%clk 00:18:44]} {[%emt
00:05:35]} 50. Rxd5 {[%clk 00:14:45]} {[%emt 00:00:12]} Kg6 {[%clk 00:19:04]}
{[%emt 00:00:09]} 51. Rd7 {[%clk 00:11:42]} {[%emt 00:03:33]} Ra5 {[%clk
00:17:48]} {[%emt 00:01:46]} 52. g4 {[%clk 00:07:45]} {[%emt 00:04:27]} Rxb5
{[%clk 00:17:25]} {[%emt 00:00:53]} 53. Rxa7 {[%clk 00:07:33]} {[%emt
00:00:43]} Rxe5 {[%clk 00:17:42]} {[%emt 00:00:13]} 54. Rb7 {[%clk 00:07:16]}
{[%emt 00:00:47]} Rb5 {[%clk 00:17:28]} {[%emt 00:00:44]} 55. Rb8 {[%clk
00:05:56]} {[%emt 00:01:50]} h5 {[%clk 00:16:14]} {[%emt 00:01:43]} 56. gxh5+
{[%clk 00:04:26]} {[%emt 00:02:01]} Kxh5 {[%clk 00:16:32]} {[%emt 00:00:11]} 57.
Rf8 {[%clk 00:04:05]} {[%emt 00:00:51]} f5 {[%clk 00:16:35]} {[%emt 00:00:27]}
58. Kh3 {[%clk 00:03:44]} {[%emt 00:00:51]} Rb3+ {[%clk 00:16:43]} {[%emt
00:00:22]} 59. g3 {[%clk 00:03:57]} {[%emt 00:00:18]} f4 {[%clk 00:16:48]}
{[%emt 00:00:25]} 60. Rh8+ {[%clk 00:03:55]} {[%emt 00:00:32]} Kg6 {[%clk
00:17:06]} {[%emt 00:00:12]} 61. Rg8+ {[%clk 00:02:20]} {[%emt 00:02:05]} Kf5
{[%clk 00:17:17]} {[%emt 00:00:20]} 62. Rf8+ {[%clk 00:02:36]} {[%emt
00:00:14]} Ke4 {[%clk 00:17:18]} {[%emt 00:00:27]} 63. Re8+ {[%clk 00:02:53]}
{[%emt 00:00:14]} Kd4 {[%clk 00:16:43]} {[%emt 00:01:03]} 0-1